[Event "*** SCC Grand Prix: Titled Tuesday Blitz"]
[Site "Chess.com"]
[Date "2020.09.29"]
[Round "3"]
[White "PSvidler"]
[Black "Maghalashvili"]
[Result "0-1"]
[WhiteElo "2934"]
[BlackElo "2712"]
[TimeControl "180+1"]
[EndTime "10:27:49 PDT"]
[Termination "Maghalashvili won by checkmate"]

1. e4 {[%clk 0:03:00.9]} 1... c5 {[%clk 0:03:00.1]} 2. Nf3 {[%clk 0:03:00.7]}
2... d6 {[%clk 0:03:00.5]} 3. d4 {[%clk 0:03:00.6]} 3... cxd4 {[%clk 0:03:01.4]}
4. Nxd4 {[%clk 0:03:00.7]} 4... Nf6 {[%clk 0:03:01.9]} 5. Nc3 {[%clk 0:03:00.5]}
5... a6 {[%clk 0:03:01.8]} 6. f3 {[%clk 0:02:58.4]} 6... e5 {[%clk 0:03:01.7]}
7. Nb3 {[%clk 0:02:56.7]} 7... Be6 {[%clk 0:03:02.1]} 8. Be3 {[%clk 0:02:56.1]}
8... h5 {[%clk 0:03:02]} 9. Qd2 {[%clk 0:02:51.8]} 9... Nbd7 {[%clk 0:03:02.1]}
10. O-O-O {[%clk 0:02:50.9]} 10... Be7 {[%clk 0:02:55.1]} 11. Kb1 {[%clk
0:02:41.1]} 11... Rc8 {[%clk 0:02:54.1]} 12. h3 {[%clk 0:02:29]} 12... b5 {[%clk
0:02:44.5]} 13. Bd3 {[%clk 0:02:28.9]} 13... b4 {[%clk 0:02:37.8]} 14. Nd5
{[%clk 0:02:28.1]} 14... Bxd5 {[%clk 0:02:33]} 15. exd5 {[%clk 0:02:28.1]} 15...
Nxd5 {[%clk 0:02:21.8]} 16. Bxa6 {[%clk 0:02:22.4]} 16... Ra8 {[%clk 0:02:00.5]}
17. Bc4 {[%clk 0:02:07.3]} 17... Nxe3 {[%clk 0:01:53.9]} 18. Qxe3 {[%clk
0:02:07.4]} 18... O-O {[%clk 0:01:36.4]} 19. f4 {[%clk 0:01:35.8]} 19... Qc7
{[%clk 0:01:25.3]} 20. Bd5 {[%clk 0:01:33.8]} 20... Rac8 {[%clk 0:01:17.3]} 21.
Qe2 {[%clk 0:00:56.6]} 21... Nf6 {[%clk 0:01:01.7]} 22. Rhe1 {[%clk 0:00:45.6]}
22... Nxd5 {[%clk 0:00:55.2]} 23. Rxd5 {[%clk 0:00:44.6]} 23... Bf6 {[%clk
0:00:54.6]} 24. f5 {[%clk 0:00:38.9]} 24... e4 {[%clk 0:00:43.3]} 25. Qxe4
{[%clk 0:00:34.3]} 25... Qc6 {[%clk 0:00:37]} 26. Rdd1 {[%clk 0:00:21.6]} 26...
d5 {[%clk 0:00:36.8]} 27. Qd3 {[%clk 0:00:21.7]} 27... Rfd8 {[%clk 0:00:25.3]}
28. g4 {[%clk 0:00:21.2]} 28... hxg4 {[%clk 0:00:25.2]} 29. hxg4 {[%clk
0:00:21.4]} 29... Ra8 {[%clk 0:00:24.8]} 30. Nc1 {[%clk 0:00:18.3]} 30... Ra5
{[%clk 0:00:18.2]} 31. Rh1 {[%clk 0:00:17.9]} 31... Bg5 {[%clk 0:00:10.5]} 32.
Qh3 {[%clk 0:00:17.3]} 32... Qh6 {[%clk 0:00:09.7]} 33. Qxh6 {[%clk 0:00:17.2]}
33... gxh6 {[%clk 0:00:09.8]} 34. Nd3 {[%clk 0:00:17.5]} 34... Rb8 {[%clk
0:00:08.3]} 35. Rhe1 {[%clk 0:00:17.2]} 35... Kg7 {[%clk 0:00:08.6]} 36. Ne5
{[%clk 0:00:16.9]} 36... Rba8 {[%clk 0:00:08.4]} 37. a3 {[%clk 0:00:14.7]} 37...
bxa3 {[%clk 0:00:08.4]} 38. b3 {[%clk 0:00:14.6]} 38... a2+ {[%clk 0:00:08.9]}
39. Ka1 {[%clk 0:00:14.8]} 39... Bf6 {[%clk 0:00:09.8]} 40. c3 {[%clk
0:00:15.1]} 40... Rc5 {[%clk 0:00:09.9]} 41. Nd7 {[%clk 0:00:12.8]} 41... Bxc3#
{[%clk 0:00:09.5]} 0-1

[Event "*** SCC Grand Prix: Titled Tuesday Blitz"]
[Site "Chess.com"]
[Date "2020.09.29"]
[Round "3"]
[White "JonahWillow"]
[Black "FMJoseHerrera"]
[Result "0-1"]
[WhiteElo "2748"]
[BlackElo "2557"]
[TimeControl "180+1"]
[EndTime "10:27:49 PDT"]
[Termination "FMJoseHerrera won by resignation"]

1. e4 {[%clk 0:03:00.9]} 1... c5 {[%clk 0:02:59.6]} 2. Nf3 {[%clk 0:03:01]} 2...
e6 {[%clk 0:02:59.3]} 3. d4 {[%clk 0:03:01.3]} 3... cxd4 {[%clk 0:03:00.2]} 4.
Nxd4 {[%clk 0:03:02.2]} 4... a6 {[%clk 0:03:00.8]} 5. Nc3 {[%clk 0:03:00.1]}
5... Qc7 {[%clk 0:03:01.1]} 6. g3 {[%clk 0:03:00.3]} 6... b6 {[%clk 0:03:01.5]}
7. Bg2 {[%clk 0:03:00.2]} 7... Bb7 {[%clk 0:03:01.9]} 8. O-O {[%clk 0:03:00.9]}
8... d6 {[%clk 0:03:02.3]} 9. Be3 {[%clk 0:02:54]} 9... Nd7 {[%clk 0:03:01.7]}
10. f4 {[%clk 0:02:51.5]} 10... Ngf6 {[%clk 0:03:00.9]} 11. Nb3 {[%clk
0:02:47.5]} 11... Be7 {[%clk 0:02:59]} 12. a4 {[%clk 0:02:35.2]} 12... h5 {[%clk
0:02:57.7]} 13. h3 {[%clk 0:02:34.9]} 13... g6 {[%clk 0:02:48.4]} 14. Qe2 {[%clk
0:02:25.6]} 14... Rc8 {[%clk 0:02:45.7]} 15. Rad1 {[%clk 0:02:21.8]} 15... Qb8
{[%clk 0:02:45.5]} 16. Bd4 {[%clk 0:01:55.2]} 16... O-O {[%clk 0:02:25.1]} 17.
g4 {[%clk 0:01:52.7]} 17... Qa8 {[%clk 0:01:49.6]} 18. e5 {[%clk 0:01:04.3]}
18... Bxg2 {[%clk 0:01:49]} 19. Qxg2 {[%clk 0:00:56.3]} 19... Qxg2+ {[%clk
0:01:49.9]} 20. Kxg2 {[%clk 0:00:57.2]} 20... Ne8 {[%clk 0:01:38.6]} 21. gxh5
{[%clk 0:00:56.4]} 21... gxh5 {[%clk 0:01:39.5]} 22. Kf3 {[%clk 0:00:50.4]}
22... Kh7 {[%clk 0:01:36]} 23. Rg1 {[%clk 0:00:47.9]} 23... dxe5 {[%clk
0:01:33.3]} 24. fxe5 {[%clk 0:00:47.4]} 24... Ng7 {[%clk 0:01:33.1]} 25. Ke4
{[%clk 0:00:43]} 25... Nf5 {[%clk 0:01:32.6]} 26. Bf2 {[%clk 0:00:37.2]} 26...
Rc4+ {[%clk 0:01:31.8]} 27. Nd4 {[%clk 0:00:13.7]} 27... Rd8 {[%clk 0:01:31.6]}
28. Ne2 {[%clk 0:00:13.1]} 28... Rxa4 {[%clk 0:01:06.3]} 29. b3 {[%clk
0:00:13.2]} 29... Ra5 {[%clk 0:00:58.2]} 30. Nxf5 {[%clk 0:00:12.7]} 30... Rxe5+
{[%clk 0:00:57.9]} 31. Kd3 {[%clk 0:00:08.2]} 31... Rxf5 {[%clk 0:00:57.3]} 32.
Be3 {[%clk 0:00:06.6]} 32... Bf6 {[%clk 0:00:55.6]} 33. Nd4 {[%clk 0:00:05.6]}
33... Nc5+ {[%clk 0:00:50.1]} 34. Ke2 {[%clk 0:00:05.8]} 34... Re5 {[%clk
0:00:44.8]} 35. Kf3 {[%clk 0:00:04]} 35... Rc8 {[%clk 0:00:39.2]} 36. b4 {[%clk
0:00:03.7]} 36... Na4 {[%clk 0:00:35.3]} 37. Rg2 {[%clk 0:00:03.8]} 37... Rc3
{[%clk 0:00:30.1]} 38. Re1 {[%clk 0:00:01.9]} 38... Nb2 {[%clk 0:00:23.8]} 39.
Kf2 {[%clk 0:00:01.6]} 39... Nc4 {[%clk 0:00:22.4]} 40. Bf4 {[%clk 0:00:01.4]}
40... Rxe1 {[%clk 0:00:20.6]} 41. Kxe1 {[%clk 0:00:02.3]} 41... Bxd4 {[%clk
0:00:21]} 42. Bb8 {[%clk 0:00:03]} 42... Ne3 {[%clk 0:00:20.1]} 43. Rg3 {[%clk
0:00:02.3]} 43... Nxc2+ {[%clk 0:00:20.3]} 0-1

[Event "*** SCC Grand Prix: Titled Tuesday Blitz"]
[Site "Chess.com"]
[Date "2020.09.29"]
[Round "3"]
[White "eljanov"]
[Black "MPGM"]
[Result "1-0"]
[WhiteElo "2802"]
[BlackElo "2435"]
[TimeControl "180+1"]
[EndTime "10:27:49 PDT"]
[Termination "eljanov won on time"]

1. e4 {[%clk 0:03:00.9]} 1... c6 {[%clk 0:02:54.4]} 2. Nf3 {[%clk 0:02:59.9]}
2... d5 {[%clk 0:02:53.9]} 3. d3 {[%clk 0:03:00.6]} 3... dxe4 {[%clk 0:02:53.3]}
4. dxe4 {[%clk 0:03:01.5]} 4... Qxd1+ {[%clk 0:02:53.6]} 5. Kxd1 {[%clk
0:03:02.4]} 5... Nd7 {[%clk 0:02:51.2]} 6. Nfd2 {[%clk 0:02:47.2]} 6... Ngf6
{[%clk 0:02:44.2]} 7. f3 {[%clk 0:02:46.4]} 7... h5 {[%clk 0:02:41]} 8. Nc4
{[%clk 0:02:45.3]} 8... h4 {[%clk 0:02:23.7]} 9. Be3 {[%clk 0:02:44.9]} 9... e5
{[%clk 0:02:13.6]} 10. Nbd2 {[%clk 0:02:44.2]} 10... Nh5 {[%clk 0:01:56.6]} 11.
c3 {[%clk 0:02:39.5]} 11... f6 {[%clk 0:01:54.2]} 12. b4 {[%clk 0:02:36.9]}
12... g5 {[%clk 0:01:53.1]} 13. Kc2 {[%clk 0:02:36]} 13... Nf4 {[%clk
0:01:51.4]} 14. a4 {[%clk 0:02:34.9]} 14... Be7 {[%clk 0:01:46.7]} 15. a5 {[%clk
0:02:25.7]} 15... Nf8 {[%clk 0:01:45.1]} 16. Nb3 {[%clk 0:02:24]} 16... g4
{[%clk 0:01:27.1]} 17. Rd1 {[%clk 0:02:17.9]} 17... gxf3 {[%clk 0:01:22.4]} 18.
gxf3 {[%clk 0:02:18.8]} 18... h3 {[%clk 0:01:17]} 19. Rg1 {[%clk 0:02:18.2]}
19... Be6 {[%clk 0:01:12.8]} 20. Nd6+ {[%clk 0:02:16.5]} 20... Bxd6 {[%clk
0:01:12.1]} 21. Rxd6 {[%clk 0:02:17.4]} 21... Ke7 {[%clk 0:01:12]} 22. Rd2
{[%clk 0:02:11.2]} 22... Kf7 {[%clk 0:01:08]} 23. Nc5 {[%clk 0:02:09]} 23... b6
{[%clk 0:01:03.4]} 24. Nxe6 {[%clk 0:02:04.9]} 24... N8xe6 {[%clk 0:00:56.4]}
25. Bc4 {[%clk 0:02:04.7]} 25... Rad8 {[%clk 0:00:45.4]} 26. axb6 {[%clk
0:01:48]} 26... Rxd2+ {[%clk 0:00:43.5]} 27. Kxd2 {[%clk 0:01:48.1]} 27... axb6
{[%clk 0:00:44.4]} 28. Bxb6 {[%clk 0:01:48]} 28... Ke7 {[%clk 0:00:38.6]} 29.
Kc2 {[%clk 0:01:45]} 29... Ng5 {[%clk 0:00:38.4]} 30. Rg3 {[%clk 0:01:41.2]}
30... Nh5 {[%clk 0:00:35]} 31. Rg4 {[%clk 0:01:35.4]} 31... Nxf3 {[%clk
0:00:34.8]} 32. Be2 {[%clk 0:01:23.2]} 32... Ng5 {[%clk 0:00:12.4]} 33. Rh4
{[%clk 0:01:23.5]} 33... Nf4 {[%clk 0:00:12.5]} 34. Bc5+ {[%clk 0:01:21.2]}
34... Kf7 {[%clk 0:00:06.7]} 35. Rxh8 {[%clk 0:01:20.5]} 35... Nxe2 {[%clk
0:00:07.2]} 36. Be3 {[%clk 0:01:19]} 36... Nxe4 {[%clk 0:00:06.6]} 37. Rxh3
{[%clk 0:01:19]} 37... N2xc3 {[%clk 0:00:06.4]} 38. Kd3 {[%clk 0:01:13.5]} 38...
f5 {[%clk 0:00:06]} 39. Rh6 {[%clk 0:01:11.8]} 39... Nd5 {[%clk 0:00:05]} 40.
Bc5 {[%clk 0:01:09.7]} 40... Nef6 {[%clk 0:00:03.6]} 41. h4 {[%clk 0:01:08]}
41... f4 {[%clk 0:00:03.9]} 42. Rh8 {[%clk 0:01:07.1]} 42... e4+ {[%clk
0:00:03.7]} 43. Ke2 {[%clk 0:01:06]} 43... e3 {[%clk 0:00:04.3]} 44. Kf3 {[%clk
0:01:05.2]} 44... Nd7 {[%clk 0:00:03.4]} 45. Rh5 {[%clk 0:00:47.6]} 45... Kg6
{[%clk 0:00:03.6]} 46. Rg5+ {[%clk 0:00:47.6]} 46... Kf6 {[%clk 0:00:03.5]} 47.
Bd4+ {[%clk 0:00:47.8]} 47... Kf7 {[%clk 0:00:04]} 48. h5 {[%clk 0:00:48.2]}
48... Nxb4 {[%clk 0:00:04]} 49. h6 {[%clk 0:00:48.7]} 49... Nf8 {[%clk
0:00:02.8]} 50. h7 {[%clk 0:00:49]} 50... Nxh7 {[%clk 0:00:02.8]} 51. Rg7+
{[%clk 0:00:49.5]} 51... Ke6 {[%clk 0:00:03.7]} 52. Rxh7 {[%clk 0:00:50.4]}
52... Nd3 {[%clk 0:00:02]} 53. Rh5 {[%clk 0:00:44.6]} 1-0

[Event "*** SCC Grand Prix: Titled Tuesday Blitz"]
[Site "Chess.com"]
[Date "2020.09.29"]
[Round "3"]
[White "elohunter1999"]
[Black "abfchess"]
[Result "1-0"]
[WhiteElo "2461"]
[BlackElo "2099"]
[TimeControl "180+1"]
[EndTime "10:27:50 PDT"]
[Termination "elohunter1999 won by resignation"]

1. e4 {[%clk 0:03:00.9]} 1... e6 {[%clk 0:02:59.8]} 2. d4 {[%clk 0:03:00.8]}
2... d5 {[%clk 0:02:59.1]} 3. Nc3 {[%clk 0:03:01.2]} 3... Nf6 {[%clk 0:02:48.9]}
4. e5 {[%clk 0:03:00.6]} 4... Nfd7 {[%clk 0:02:46.4]} 5. f4 {[%clk 0:03:00.7]}
5... c5 {[%clk 0:02:46.2]} 6. Nf3 {[%clk 0:03:01.3]} 6... Nc6 {[%clk 0:02:46.1]}
7. Be3 {[%clk 0:03:01.7]} 7... Qb6 {[%clk 0:02:45.2]} 8. Na4 {[%clk 0:03:00.7]}
8... Qa5+ {[%clk 0:02:45.2]} 9. c3 {[%clk 0:03:00.4]} 9... cxd4 {[%clk
0:02:45.4]} 10. b4 {[%clk 0:02:59.7]} 10... Nxb4 {[%clk 0:02:35.7]} 11. cxb4
{[%clk 0:02:58.8]} 11... Bxb4+ {[%clk 0:02:36.6]} 12. Bd2 {[%clk 0:02:58.4]}
12... b5 {[%clk 0:02:35.9]} 13. Nb2 {[%clk 0:02:26.1]} 13... Bc3 {[%clk
0:02:35.7]} 14. Nxd4 {[%clk 0:02:09.1]} 14... b4 {[%clk 0:02:22.1]} 15. Bxc3
{[%clk 0:02:06.8]} 15... bxc3 {[%clk 0:02:22.2]} 16. Nd3 {[%clk 0:02:06.5]}
16... Ba6 {[%clk 0:02:15.5]} 17. Be2 {[%clk 0:01:56.2]} 17... Rc8 {[%clk
0:02:03.3]} 18. O-O {[%clk 0:01:39.8]} 18... Qb6 {[%clk 0:02:00.9]} 19. Nf2
{[%clk 0:01:31.6]} 19... Bxe2 {[%clk 0:01:52.4]} 20. Nxe2 {[%clk 0:01:32.5]}
20... c2 {[%clk 0:01:48]} 21. Qd2 {[%clk 0:01:25.4]} 21... O-O {[%clk 0:01:48]}
22. Rfc1 {[%clk 0:01:17.4]} 22... Nc5 {[%clk 0:01:44]} 23. Nd4 {[%clk
0:00:50.4]} 23... Ne4 {[%clk 0:01:37.6]} 24. Nxe4 {[%clk 0:00:50.4]} 24... dxe4
{[%clk 0:01:38.5]} 25. Qe3 {[%clk 0:00:47.4]} 25... Rfd8 {[%clk 0:01:35.4]} 26.
Rxc2 {[%clk 0:00:47.5]} 26... Rxc2 {[%clk 0:00:51.3]} 27. Nxc2 {[%clk
0:00:47.2]} 27... Qb2 {[%clk 0:00:51.9]} 28. Qb3 {[%clk 0:00:34.2]} 28... Rb8
{[%clk 0:00:40.4]} 29. Qxb2 {[%clk 0:00:32.6]} 29... Rxb2 {[%clk 0:00:41.3]} 30.
Ne3 {[%clk 0:00:22.5]} 30... g6 {[%clk 0:00:39.7]} 31. Rc1 {[%clk 0:00:21.2]}
31... Rxa2 {[%clk 0:00:39.1]} 32. Rc4 {[%clk 0:00:21.2]} 32... a5 {[%clk
0:00:34.7]} 33. Rxe4 {[%clk 0:00:21.4]} 33... a4 {[%clk 0:00:35.3]} 34. Ng4
{[%clk 0:00:21.5]} 34... a3 {[%clk 0:00:34.9]} 35. Nf6+ {[%clk 0:00:21.7]} 35...
Kg7 {[%clk 0:00:35.3]} 36. Ra4 {[%clk 0:00:21.6]} 36... Ra1+ {[%clk 0:00:35.8]}
37. Kf2 {[%clk 0:00:21.7]} 37... h5 {[%clk 0:00:34.8]} 38. h3 {[%clk 0:00:19.1]}
38... g5 {[%clk 0:00:32.2]} 39. fxg5 {[%clk 0:00:14]} 39... Kg6 {[%clk
0:00:32.4]} 40. h4 {[%clk 0:00:13]} 40... Kf5 {[%clk 0:00:32.3]} 41. Nxh5 {[%clk
0:00:13.1]} 41... Kxe5 {[%clk 0:00:32.2]} 42. Nf6 {[%clk 0:00:13.1]} 42... Kf5
{[%clk 0:00:32.1]} 43. g4+ {[%clk 0:00:12.1]} 43... Ke5 {[%clk 0:00:31.7]} 44.
h5 {[%clk 0:00:11.8]} 44... a2 {[%clk 0:00:31.9]} 45. Kg2 {[%clk 0:00:11.8]}
45... Kd6 {[%clk 0:00:28.7]} 46. h6 {[%clk 0:00:12.2]} 1-0

[Event "*** SCC Grand Prix: Titled Tuesday Blitz"]
[Site "Chess.com"]
[Date "2020.09.29"]
[Round "3"]
[White "Ural_bogatyr"]
[Black "CheckThis4"]
[Result "0-1"]
[WhiteElo "2387"]
[BlackElo "2604"]
[TimeControl "180+1"]
[EndTime "10:27:51 PDT"]
[Termination "CheckThis4 won by resignation"]

1. e4 {[%clk 0:03:00.9]} 1... c5 {[%clk 0:02:59.4]} 2. Nf3 {[%clk 0:03:00.7]}
2... d6 {[%clk 0:02:59.7]} 3. d4 {[%clk 0:03:00.6]} 3... cxd4 {[%clk 0:02:59.8]}
4. Qxd4 {[%clk 0:03:01.5]} 4... a6 {[%clk 0:02:58.8]} 5. Be3 {[%clk 0:03:01.2]}
5... Nc6 {[%clk 0:02:58.4]} 6. Qd2 {[%clk 0:03:00.8]} 6... Nf6 {[%clk
0:02:57.5]} 7. Nc3 {[%clk 0:03:01.4]} 7... Bg4 {[%clk 0:02:50.8]} 8. O-O-O
{[%clk 0:02:59.4]} 8... e6 {[%clk 0:02:46.9]} 9. Be2 {[%clk 0:02:52.9]} 9... Be7
{[%clk 0:02:46.7]} 10. h3 {[%clk 0:02:53]} 10... Bh5 {[%clk 0:02:42]} 11. Nd4
{[%clk 0:02:41]} 11... Nxd4 {[%clk 0:02:31.1]} 12. Bxd4 {[%clk 0:02:15.8]} 12...
Bxe2 {[%clk 0:02:29.9]} 13. Qxe2 {[%clk 0:02:16.7]} 13... Qa5 {[%clk 0:02:26]}
14. Kb1 {[%clk 0:02:09.3]} 14... O-O {[%clk 0:02:24.6]} 15. g4 {[%clk
0:02:02.1]} 15... Rfc8 {[%clk 0:02:17.9]} 16. f4 {[%clk 0:02:00.7]} 16... b5
{[%clk 0:02:14.7]} 17. g5 {[%clk 0:01:36.9]} 17... Nd7 {[%clk 0:01:50.1]} 18. f5
{[%clk 0:01:10.3]} 18... b4 {[%clk 0:01:43]} 19. fxe6 {[%clk 0:01:10.2]} 19...
fxe6 {[%clk 0:01:40.4]} 20. Qg4 {[%clk 0:01:10.6]} 20... Nf8 {[%clk 0:01:21.4]}
21. Ne2 {[%clk 0:01:07]} 21... Qxg5 {[%clk 0:01:14.8]} 22. Qf3 {[%clk
0:01:04.5]} 22... e5 {[%clk 0:01:13.9]} 23. Qb3+ {[%clk 0:00:51]} 23... Kh8
{[%clk 0:01:11.3]} 24. Be3 {[%clk 0:00:50.6]} 24... Qg2 {[%clk 0:00:55.9]} 25.
Qd3 {[%clk 0:00:35.9]} 25... Ne6 {[%clk 0:00:43.3]} 26. Rhg1 {[%clk 0:00:34.1]}
26... Qxh3 {[%clk 0:00:30.2]} 27. Rg3 {[%clk 0:00:30.5]} 27... Qh4 {[%clk
0:00:26.1]} 28. Rdg1 {[%clk 0:00:27.3]} 28... Rf8 {[%clk 0:00:24.1]} 29. Qd5
{[%clk 0:00:25.3]} 29... Nf4 {[%clk 0:00:20.4]} 30. Bxf4 {[%clk 0:00:20.5]}
30... exf4 {[%clk 0:00:21]} 31. Rxg7 {[%clk 0:00:20.5]} 31... f3 {[%clk
0:00:21.5]} 32. Nd4 {[%clk 0:00:16.6]} 32... f2 {[%clk 0:00:21.7]} 33. Rf1
{[%clk 0:00:15.1]} 33... Kxg7 {[%clk 0:00:20.7]} 34. e5 {[%clk 0:00:09]} 34...
Rad8 {[%clk 0:00:15.8]} 35. Ne6+ {[%clk 0:00:06.4]} 35... Kh8 {[%clk 0:00:16]}
36. Nxd8 {[%clk 0:00:05.3]} 36... Rxd8 {[%clk 0:00:14.6]} 37. exd6 {[%clk
0:00:04.5]} 37... Rxd6 {[%clk 0:00:14.7]} 38. Qc5 {[%clk 0:00:02]} 38... Rd1+
{[%clk 0:00:13]} 39. Rxd1 {[%clk 0:00:02.3]} 39... Bxc5 {[%clk 0:00:13.6]} 0-1

[Event "*** SCC Grand Prix: Titled Tuesday Blitz"]
[Site "Chess.com"]
[Date "2020.09.29"]
[Round "3"]
[White "ChessWarrior7197"]
[Black "ENajer77"]
[Result "1-0"]
[WhiteElo "2953"]
[BlackElo "2700"]
[TimeControl "180+1"]
[EndTime "10:27:52 PDT"]
[Termination "ChessWarrior7197 won on time"]

1. e4 {[%clk 0:03:00.9]} 1... c6 {[%clk 0:02:58.3]} 2. d4 {[%clk 0:03:00.8]}
2... d5 {[%clk 0:02:58.2]} 3. exd5 {[%clk 0:03:01.7]} 3... cxd5 {[%clk
0:02:58.1]} 4. Bd3 {[%clk 0:03:02.2]} 4... Nc6 {[%clk 0:02:57.8]} 5. c3 {[%clk
0:03:02.4]} 5... Nf6 {[%clk 0:02:58.1]} 6. Bf4 {[%clk 0:03:02.6]} 6... Bg4
{[%clk 0:02:57.3]} 7. Qb3 {[%clk 0:03:02.9]} 7... Qd7 {[%clk 0:02:57.4]} 8. Nd2
{[%clk 0:03:03.3]} 8... e6 {[%clk 0:02:58]} 9. Ngf3 {[%clk 0:03:03.9]} 9... Bd6
{[%clk 0:02:57.9]} 10. Bxd6 {[%clk 0:03:03.9]} 10... Qxd6 {[%clk 0:02:58.5]} 11.
O-O {[%clk 0:03:04.8]} 11... O-O {[%clk 0:02:58.6]} 12. Rae1 {[%clk 0:03:04.3]}
12... Rab8 {[%clk 0:02:56.3]} 13. Ne5 {[%clk 0:03:03.9]} 13... Bh5 {[%clk
0:02:55.4]} 14. f4 {[%clk 0:03:03.3]} 14... b5 {[%clk 0:02:36.7]} 15. a3 {[%clk
0:02:58.5]} 15... Qc7 {[%clk 0:02:13.7]} 16. Re3 {[%clk 0:02:52.9]} 16... Ng4
{[%clk 0:01:08.4]} 17. Bxh7+ {[%clk 0:02:29.8]} 17... Kxh7 {[%clk 0:01:07.9]}
18. Rh3 {[%clk 0:02:29.9]} 18... Nf6 {[%clk 0:01:02.4]} 19. g4 {[%clk
0:02:30.2]} 19... Nxe5 {[%clk 0:00:45.5]} 20. fxe5 {[%clk 0:02:28.3]} 20... Nxg4
{[%clk 0:00:46.1]} 21. Rxh5+ {[%clk 0:02:28.4]} 21... Kg8 {[%clk 0:00:37.6]} 22.
Qc2 {[%clk 0:02:24.2]} 22... f5 {[%clk 0:00:36.7]} 23. exf6 {[%clk 0:02:15.9]}
23... Nxf6 {[%clk 0:00:36.7]} 24. Rh3 {[%clk 0:02:16.5]} 24... e5 {[%clk
0:00:33.3]} 25. dxe5 {[%clk 0:01:53.5]} 25... Qxe5 {[%clk 0:00:32.8]} 26. Qg6
{[%clk 0:01:50.5]} 26... d4 {[%clk 0:00:21.3]} 27. Nf3 {[%clk 0:01:36.1]} 27...
Qe3+ {[%clk 0:00:21.3]} 28. Kh1 {[%clk 0:01:36.5]} 28... Qe4 {[%clk 0:00:16.6]}
29. Qxe4 {[%clk 0:01:09.9]} 29... Nxe4 {[%clk 0:00:16.6]} 30. cxd4 {[%clk
0:01:10.8]} 30... b4 {[%clk 0:00:16.1]} 31. Rh4 {[%clk 0:00:59.8]} 31... Ng5
{[%clk 0:00:15.3]} 32. Kg2 {[%clk 0:00:41.6]} 32... bxa3 {[%clk 0:00:13.7]} 33.
bxa3 {[%clk 0:00:35]} 33... Rb2+ {[%clk 0:00:13.6]} 34. Kg3 {[%clk 0:00:35.4]}
34... Nxf3 {[%clk 0:00:07.4]} 35. Rxf3 {[%clk 0:00:36.3]} 35... Rxf3+ {[%clk
0:00:07.4]} 36. Kxf3 {[%clk 0:00:37.2]} 36... Rb3+ {[%clk 0:00:08]} 37. Ke4
{[%clk 0:00:37.9]} 37... Rxa3 {[%clk 0:00:08.6]} 38. Rf4 {[%clk 0:00:38.6]}
38... a5 {[%clk 0:00:07.8]} 39. Ke5 {[%clk 0:00:37.4]} 39... a4 {[%clk
0:00:06.7]} 40. d5 {[%clk 0:00:32.7]} 40... Ra1 {[%clk 0:00:05.4]} 41. d6 {[%clk
0:00:30.5]} 41... Re1+ {[%clk 0:00:04.7]} 42. Kd5 {[%clk 0:00:30.1]} 42... a3
{[%clk 0:00:05.1]} 43. d7 {[%clk 0:00:30]} 43... Rd1+ {[%clk 0:00:04.4]} 44. Rd4
{[%clk 0:00:30.6]} 44... Rxd4+ {[%clk 0:00:03.3]} 45. Kxd4 {[%clk 0:00:31.5]}
1-0

[Event "*** SCC Grand Prix: Titled Tuesday Blitz"]
[Site "Chess.com"]
[Date "2020.09.29"]
[Round "3"]
[White "djogrodek1"]
[Black "Ladislav1969"]
[Result "1-0"]
[WhiteElo "2539"]
[BlackElo "2353"]
[TimeControl "180+1"]
[EndTime "10:27:52 PDT"]
[Termination "djogrodek1 won by resignation"]

1. e4 {[%clk 0:03:00.5]} 1... c5 {[%clk 0:02:59.3]} 2. Nf3 {[%clk 0:03:00.7]}
2... e6 {[%clk 0:03:00]} 3. d4 {[%clk 0:02:58.1]} 3... cxd4 {[%clk 0:03:00.9]}
4. Nxd4 {[%clk 0:02:57.7]} 4... a6 {[%clk 0:03:01.8]} 5. Nc3 {[%clk 0:02:55.5]}
5... b5 {[%clk 0:03:01.6]} 6. a3 {[%clk 0:02:48.7]} 6... Bb7 {[%clk 0:03:00]} 7.
g3 {[%clk 0:02:47.9]} 7... Nf6 {[%clk 0:02:23.3]} 8. Bg2 {[%clk 0:02:46]} 8...
d6 {[%clk 0:02:19.9]} 9. O-O {[%clk 0:02:44]} 9... e5 {[%clk 0:02:18.9]} 10. Nf5
{[%clk 0:02:39.2]} 10... g6 {[%clk 0:02:11]} 11. Ne3 {[%clk 0:02:31.8]} 11...
Nbd7 {[%clk 0:02:08.8]} 12. Ned5 {[%clk 0:02:27.6]} 12... Nxd5 {[%clk
0:02:04.3]} 13. Nxd5 {[%clk 0:02:28.5]} 13... Bg7 {[%clk 0:02:01.6]} 14. Be3
{[%clk 0:02:15.8]} 14... O-O {[%clk 0:02:00.4]} 15. Qd2 {[%clk 0:02:11.3]} 15...
Rc8 {[%clk 0:01:58.1]} 16. c3 {[%clk 0:02:08.3]} 16... Nc5 {[%clk 0:01:30.6]}
17. Rad1 {[%clk 0:01:54.3]} 17... f5 {[%clk 0:01:07.2]} 18. Bg5 {[%clk
0:01:50.4]} 18... Qd7 {[%clk 0:00:39.1]} 19. Ne7+ {[%clk 0:01:46.5]} 19... Kh8
{[%clk 0:00:38.9]} 20. Nxc8 {[%clk 0:01:45.5]} 20... Rxc8 {[%clk 0:00:35.3]} 21.
Qxd6 {[%clk 0:01:40.6]} 21... Qxd6 {[%clk 0:00:30.3]} 22. Rxd6 {[%clk
0:01:41.5]} 22... Bxe4 {[%clk 0:00:29.8]} 23. Rfd1 {[%clk 0:01:30.5]} 23... h6
{[%clk 0:00:24.5]} 24. Rd8+ {[%clk 0:01:27.3]} 24... Rxd8 {[%clk 0:00:23.1]} 25.
Rxd8+ {[%clk 0:01:28.2]} 25... Kh7 {[%clk 0:00:23.4]} 26. Be3 {[%clk 0:01:24.8]}
26... Bxg2 {[%clk 0:00:09.6]} 27. Kxg2 {[%clk 0:01:25.7]} 27... Na4 {[%clk
0:00:07.8]} 28. Bc1 {[%clk 0:01:10.9]} 28... e4 {[%clk 0:00:06.9]} 29. Rd6
{[%clk 0:01:02.8]} 29... Nc5 {[%clk 0:00:06.7]} 30. Be3 {[%clk 0:00:42.1]} 30...
Nd3 {[%clk 0:00:07.1]} 31. Rd7 {[%clk 0:00:40.6]} 31... Kg8 {[%clk 0:00:05.3]}
32. Bd4 {[%clk 0:00:37.6]} 32... Bxd4 {[%clk 0:00:04.5]} 33. cxd4 {[%clk
0:00:35.9]} 33... Nxb2 {[%clk 0:00:05.1]} 34. Rd6 {[%clk 0:00:30.3]} 34... Nc4
{[%clk 0:00:05]} 35. Rxg6+ {[%clk 0:00:29.3]} 35... Kf7 {[%clk 0:00:05.3]} 36.
Rxa6 {[%clk 0:00:30.2]} 36... b4 {[%clk 0:00:03.7]} 37. axb4 {[%clk 0:00:28.7]}
37... Nd2 {[%clk 0:00:03.3]} 38. Rxh6 {[%clk 0:00:26.4]} 38... Nf3 {[%clk
0:00:03.9]} 39. b5 {[%clk 0:00:25.3]} 39... Nxd4 {[%clk 0:00:03.3]} 40. b6
{[%clk 0:00:24.1]} 40... Kg7 {[%clk 0:00:03.7]} 41. Rd6 {[%clk 0:00:22.5]} 41...
Nb5 {[%clk 0:00:03.1]} 42. Rd7+ {[%clk 0:00:20.6]} 42... Kf6 {[%clk 0:00:02.5]}
43. b7 {[%clk 0:00:21.3]} 1-0